fUST/lending_fUST_20250727
["ID","MTS","AMOUNT","RATE_DAILY","PERIOD"]
[375283838,1753615882402,-2848.85961,0.00024245,10]
[375283839,1753615882411,-900.0,0.00024246,2]
[375283840,1753615882421,-969.0,0.00024274,2]
[375283841,1753615882430,-407.0,0.00024274,2]
[375283842,1753615882439,-2158.0,0.00024274,2]
[375283843,1753615882448,-151.0,0.00024274,7]
[375283844,1753615882458,-151.0,0.00024274,7]
[375283845,1753615882468,-1158.903073,0.00024274,7]
[375283846,1753615882477,-1158.903073,0.00024274,7]
[375283847,1753615882486,-492.0,0.00024301,2]
[375283848,1753615882495,-206.0,0.0002433,2]
[375283849,1753615882504,-311.55,0.0002433,2]
[375283850,1753615882514,-492.0,0.0002433,2]
[375283851,1753615882528,-492.0,0.00024333,2]
[375283852,1753615882538,-492.0,0.00024337,2]
[375283853,1753615882547,-183.2569345,0.00024337,2]
[375283854,1753615882557,-1311.09,0.00024383,2]
[375283855,1753615882568,-460.0,0.00024383,2]
[375283856,1753615882577,-460.0,0.00024383,2]
[375283857,1753615882587,-1237.56,0.00024383,2]
[375283858,1753615882598,-1780.04,0.00024383,2]
[375283859,1753615882608,-460.0,0.00024383,2]
[375283860,1753615882617,-460.0,0.00024383,2]
[375283861,1753615882627,-628.25,0.00024383,2]
[375283862,1753615882636,-588.88,0.00024383,2]
[375283863,1753615882646,-298.76,0.00024383,2]
[375283864,1753615882655,-482.95,0.00024383,2]
[375283865,1753615882664,-481.11,0.00024383,2]
[375283866,1753615882673,-700.52,0.00024383,2]
[375283867,1753615882683,-318.46,0.00024383,2]
[375283868,1753615882768,-522.64,0.00024383,2]
[375283869,1753615882787,-473.84,0.00024383,2]
[375283870,1753615882798,-460.0,0.00024383,2]
[375283871,1753615882808,-460.0,0.00024383,2]
[375283872,1753615882821,-2233.63,0.00024383,2]
[375283873,1753615882832,-1630.4,0.00024383,2]
[375283874,1753615882841,-460.0,0.00024383,2]
[375283875,1753615882852,-772.54,0.00024383,2]
[375283876,1753615882861,-565.5,0.00024383,2]
[375283877,1753615882873,-466.14,0.00024383,2]
[375283878,1753615882885,-554.36,0.00024383,2]
[375283879,1753615882895,-939.82,0.00024383,2]
[375283880,1753615882905,-2047.96,0.00024383,2]
[375283881,1753615882915,-1111.37,0.00024383,2]
[375283882,1753615882925,-601.19,0.00024383,2]
[375283883,1753615882934,-1411.8,0.00024383,2]
[375283884,1753615882944,-734.55,0.00024383,2]
[375283885,1753615882952,-817.55,0.00024383,2]
[375283886,1753615882962,-1243.43,0.00024383,2]
[375283887,1753615882972,-460.0,0.00024383,2]
[375283888,1753615882982,-460.0,0.00024383,2]
[375283889,1753615882992,-4262.34,0.00024383,2]
[375283890,1753615883002,-3803.86,0.00024383,2]
[375283891,1753615883012,-471.21,0.00024383,2]
[375283892,1753615883022,-492.93,0.00024383,2]
[375283893,1753615883031,-1381.0,0.00024383,2]
[375283894,1753615883040,-1164.21,0.00024383,2]
[375283895,1753615883051,-635.9,0.00024383,2]
[375283896,1753615883061,-1473.58,0.00024383,2]
[375283897,1753615883071,-460.0,0.00024383,2]
[375283898,1753615883081,-151.0,0.00024384,2]
[375283899,1753615883091,-151.0,0.00024384,2]
[375283900,1753615883100,-151.0,0.00024384,2]
[375283901,1753615883110,-500.0,0.00024384,2]
[375283902,1753615883120,-151.0,0.00024384,2]
[375283903,1753615883129,-151.0,0.00024384,2]
[375283904,1753615883140,-151.0,0.00024384,2]
[375283905,1753615883149,-151.0,0.00024384,2]
[375283906,1753615883160,-500.0,0.00024384,2]
[375283907,1753615883170,-249.51129216,0.00024384,2]
[375283908,1753615883179,-239.87796106,0.00024384,2]
[375283909,1753615883188,-18899.68,0.000244,2]
[375283910,1753615883198,-221.65,0.00024428,2]
[375283911,1753615883207,-492.0,0.00024437,2]
[375283912,1753615883217,-2848.85961,0.00024452,11]
[375283913,1753615883226,-150.0,0.00024452,2]
[375283914,1753615883236,-150.0,0.00024452,2]
[375283915,1753615883246,-159.0,0.00024493,13]
[375283916,1753615883255,-842.41102259,0.00024499,2]
[375283917,1753615883264,-151.0,0.000245,7]
[375283918,1753615883275,-500.0,0.000245,2]
[375283919,1753615883285,-647188.51507076,0.000245,4]
[375283920,1753615883294,-151.0,0.000245,7]
[375283921,1753615883304,-178.419688,0.000245,7]
[375283922,1753615883314,-178.419688,0.000245,7]
[375283923,1753615883323,-900.0,0.00024502,2]
[375283924,1753615883333,-500.0,0.00024509,2]
[375283925,1753615883343,-387.27167015,0.00024514,2]
[375283926,1753615883352,-722.93,0.00024534,7]
[375283927,1753615883362,-492.0,0.00024544,2]
[375283928,1753615883371,-492.0,0.00024553,2]
[375283929,1753615883381,-492.0,0.00024562,2]
[375283930,1753615883390,-823.0,0.00024569,2]
[375283931,1753615883400,-500.0,0.00024582,2]
[375283932,1753615883409,-2091.35341261,0.00024592,2]
[375283933,1753615883418,-154.445282,0.00024593,3]
[375283934,1753615883428,-900.0,0.00024605,2]
[375283935,1753615883437,-151.0,0.00024615,6]
[375283936,1753615883446,-722.93,0.00024634,6]
[375283937,1753615883456,-500.0,0.00024639,2]
[375283938,1753615883465,-492.0,0.00024643,2]
[375283939,1753615883475,-257279.09561285,0.0002465,2]
[375283940,1753615883485,-1311.09,0.00024657,2]
[375283941,1753615883495,-496.55117734,0.00024657,2]
[375283942,1753615883504,-460.0,0.00024657,2]
[375283943,1753615883513,-1237.56,0.00024657,2]
[375283944,1753615883526,-1780.04,0.00024657,2]
[375283945,1753615883535,-233.88854178,0.00024657,2]
[375283946,1753615883544,-460.0,0.00024657,2]
[375283947,1753615883556,-628.25,0.00024657,2]
[375283948,1753615883565,-588.88,0.00024657,2]
[375283949,1753615883575,-482.95,0.00024657,2]
[375283950,1753615883589,-481.11,0.00024657,2]
[375283951,1753615883598,-700.52,0.00024657,2]
[375283952,1753615883608,-522.64,0.00024657,2]
[375283953,1753615883618,-473.84,0.00024657,2]
[375283954,1753615883629,-460.0,0.00024657,2]
[375283955,1753615883639,-460.0,0.00024657,2]
[375283956,1753615883650,-2233.63,0.00024657,2]
[375283957,1753615883659,-1630.4,0.00024657,2]
[375283958,1753615883670,-317.35291881,0.00024657,2]
[375283959,1753615883680,-772.54,0.00024657,2]
[375283960,1753615883691,-565.5,0.00024657,2]
[375283961,1753615883700,-466.14,0.00024657,2]
[375283962,1753615883710,-554.36,0.00024657,2]
[375283963,1753615883721,-939.82,0.00024657,2]
[375283964,1753615883731,-2047.96,0.00024657,2]
[375283965,1753615883741,-1111.37,0.00024657,2]
[375283966,1753615883752,-601.19,0.00024657,2]
[375283967,1753615883761,-1411.8,0.00024657,2]
[375283968,1753615883771,-734.55,0.00024657,2]
[375283969,1753615883780,-817.55,0.00024657,2]
[375283970,1753615883790,-1243.43,0.00024657,2]
[375283971,1753615883800,-324.32,0.00024657,2]
[375283972,1753615883809,-460.0,0.00024657,2]
[375283973,1753615883820,-4262.34,0.00024657,2]
[375283974,1753615883829,-471.21,0.00024657,2]
[375283975,1753615883839,-3803.86,0.00024657,2]
[375283976,1753615883849,-492.93,0.00024657,2]
[375283977,1753615883859,-1381.0,0.00024657,2]
[375283978,1753615883869,-1164.21,0.00024657,2]
[375283979,1753615883878,-635.9,0.00024657,2]
[375283980,1753615883888,-1473.58,0.00024657,2]
[375283981,1753615883898,-460.0,0.00024657,2]
[375283982,1753615883907,-157.59052775,0.00024658,2]
[375283983,1753615883917,-500.0,0.00024658,2]
[375283984,1753615883927,-151.0,0.00024658,2]
[375283985,1753615883936,-151.0,0.00024658,2]
[375283986,1753615883946,-151.0,0.00024658,2]
[375283987,1753615883956,-500.0,0.00024658,2]
[375283988,1753615883966,-500.0,0.00024658,2]
[375283989,1753615883976,-2848.85961,0.00024659,11]
[375283990,1753615883985,-206.0,0.0002467,2]
[375283991,1753615883994,-500.0,0.00024676,2]
[375283992,1753615884005,-154.445282,0.0002468,9]
[375283993,1753615884015,-4380.06,0.000247,7]
[375283994,1753615884024,-500.0,0.00024705,2]
[375283995,1753615884034,-492.0,0.00024718,2]
[375283996,1753615884044,-722.93,0.00024734,3]
[375283997,1753615884054,-492.0,0.00024747,2]
[375283998,1753615884063,-151.0,0.0002475,7]
[375283999,1753615884073,-233.774696,0.0002475,7]
[375284000,1753615884083,-1158.903073,0.0002475,7]
[375284001,1753615884092,-1158.903073,0.0002475,7]
[375284002,1753615884103,-492.0,0.00024753,2]
[375284003,1753615884113,-1877.40039241,0.000248,2]
[375284004,1753615884123,-4143.05,0.000248,14]
[375284005,1753615884132,-154.445282,0.00024809,4]
[375284006,1753615884141,-492.0,0.00024815,2]
[375284007,1753615884151,-900.0,0.00024816,2]
[375284008,1753615884161,-900.0,0.00024827,2]
[375284009,1753615884171,-722.93,0.00024834,2]
[375284010,1753615884187,-2848.85961,0.00024866,12]
[375284011,1753615884198,-151.0,0.000249,7]
[375284012,1753615884208,-1158.903073,0.000249,7]
[375284013,1753615884218,-1158.903064,0.000249,7]
[375284014,1753615884228,-151.0,0.000249,7]
[375284015,1753615884237,-182.394172,0.000249,7]
[375284016,1753615884247,-24261.60810412,0.000249,2]
[375284017,1753615884355,-212246.99934456,0.000249,2]
[375284018,1753615884368,-4934.89515568,0.000249,2]
[375284019,1753615884530,-6510.33143702,0.00019177,2]
[375284020,1753615884545,-3361.09289638,0.00019177,2]
[375284021,1753615884683,-40128.5756666,0.00019177,2]
[375284022,1753615884695,-460.0,0.00019178,2]
[375284023,1753615884706,-460.0,0.00019178,2]
[375284024,1753615884715,-460.0,0.00019178,2]
[375284025,1753615884725,-507.92,0.00019452,2]
[375284026,1753615884735,-461.25465039,0.00019452,2]
[375284027,1753615884745,-460.0,0.00019452,2]
[375284028,1753615884754,-460.0,0.00019452,2]
[375284029,1753615884766,-507.92,0.00019726,2]
[375284030,1753615884775,-492.84,0.00019726,2]
[375284031,1753615884785,-507.92,0.0002,2]
[375284032,1753615884795,-507.92,0.00020273,2]
[375284033,1753615884806,-507.92,0.00020547,2]
[375284034,1753615884815,-507.92,0.00020821,2]
[375284035,1753615884825,-507.92,0.00021095,2]
[375284036,1753615884835,-507.92,0.00021369,2]
[375284037,1753615884844,-94265.968993,0.000249,2]
[375284038,1753615884858,-490.71982744,0.000249,2]
[375284039,1753615884870,-320.75903613,0.000249,2]
[375284040,1753615884881,-7632.73101,0.000249,2]
[375284041,1753615884893,-3737.61227077,0.000249,2]
[375284042,1753615884910,-450.999092,0.00021643,2]
[375284043,1753615885127,-460.0,0.00019178,2]
[375284044,1753615885137,-460.0,0.00019178,2]
[375284045,1753615885147,-460.0,0.00019178,2]
[375284046,1753615885157,-460.0,0.00019178,2]
[375284047,1753615885167,-460.0,0.00019452,2]
[375284048,1753615885179,-465.44376977,0.00019452,2]
[375284049,1753615885188,-460.0,0.00019452,2]
[375284050,1753615885198,-460.0,0.00019452,2]
[375284051,1753615885207,-562.81584063,0.00019726,2]
[375284052,1753615885218,-56.920908,0.00021643,2]
[375284053,1753615885228,-507.92,0.00021917,2]
[375284054,1753615885240,-507.92,0.00022191,2]
[375284055,1753615885250,-507.92,0.00022465,2]
[375284056,1753615885259,-507.92,0.00022739,2]
[375284057,1753615885269,-507.92,0.00023013,2]
[375284058,1753615885279,-507.92,0.00023287,2]
[375284059,1753615885288,-507.92,0.00023561,2]
[375284060,1753615885298,-507.92,0.00023835,2]
[375284061,1753615885308,-507.92,0.00024109,2]
[375284062,1753615885317,-91649.92148816,0.000249,2]
[375284063,1753615885330,-2160.0,0.000249,2]
[375284064,1753615885558,-1.04356793,0.00019178,2]
[375284065,1753615885570,-458.95643207,0.00019178,2]
[375284066,1753615885580,-460.0,0.00019178,2]
[375284067,1753615885590,-460.0,0.00019178,2]
[375284068,1753615885599,-460.0,0.00019178,2]
[375284069,1753615885609,-266.27945693,0.00019178,2]
[375284070,1753615885618,-460.0,0.00019178,2]
[375284071,1753615885628,-460.0,0.00019452,2]
[375284072,1753615885638,-460.0,0.00019452,2]
[375284073,1753615885647,-460.0,0.00019452,2]
[375284074,1753615885657,-1271.84472331,0.00021313,2]
[375284075,1753615885667,-507.92,0.00024383,2]
[375284076,1753615885888,-507.92,0.00024657,2]
[375284077,1753615885899,-18.69332469,0.000249,2]
[375284078,1753615886607,-460.0,0.00019726,2]
[375284079,1753615886621,-3793.16894433,0.000249,2]
[375284080,1753615886646,-601.34710235,0.000249,2]
[375284081,1753615888877,18572.8157135,0.00018872,2]
[375284083,1753615937284,150.0,0.00022447,30]
[375284085,1753615958643,393.181627,0.00013699,2]
[375284087,1753615986280,234.86092415,0.00018771,2]
[375284088,1753616012111,1479.9619309,0.00018793,2]
[375284089,1753616012666,150.0,0.00018473,2]
[375284090,1753616017089,150.0,0.00022106,30]
[375284094,1753616086406,150.0,0.00018528,2]
[375284095,1753616089794,150.0,0.00022024,30]
[375284097,1753616162693,150.0,0.00018517,2]
[375284099,1753616248512,150.0,0.00018457,2]
[375284100,1753616329262,150.0,0.0001883,2]
[375284106,1753616396540,3686.898462,0.00017999,2]
[375284107,1753616396565,20000.0,0.00017999,2]
[375284108,1753616396590,1213.101538,0.00017999,2]
[375284109,1753616417940,150.0,0.00018517,2]
[375284110,1753616425475,179.394133,0.00017948,2]
[375284111,1753616500293,150.0,0.00018451,2]
[375284112,1753616543196,18307.504329,0.00018773,2]
[375284113,1753616543218,7.54666118,0.00018773,2]
[375284114,1753616640468,1300.25,0.0001885,2]
[375284118,1753616833459,12210.03399346,0.00018772,2]
[375284119,1753616849157,-185.41,0.00018862,3]
[375284120,1753616849178,-556.25,0.00018862,3]
[375284121,1753616849198,-1200.0,0.0001887,2]
[375284122,1753616849219,-300.0,0.0001887,2]
[375284123,1753616849239,-500.0,0.00018871,2]
[375284124,1753616849260,-500.0,0.00018871,2]
[375284125,1753616849281,-390.74263897,0.00018871,2]
[375284126,1753616849301,-197.94283208,0.00018871,2]
[375284127,1753616849324,-376.01499851,0.00018871,2]
[375284128,1753616849344,-238.87511094,0.00018871,2]
[375284129,1753616849363,-976.42813126,0.00018872,2]
[375284139,1753617017430,338.66364107,0.000188,2]
[375284140,1753617030489,6143.50570429,0.00018082,2]
[375284141,1753617030515,2362.23288811,0.00018082,2]
[375284153,1753617032623,-300.0,0.00018871,2]
[375284155,1753617032633,-500.0,0.00018871,2]
[375284157,1753617032643,-3008.08033349,0.00018872,2]
[375284162,1753617032677,-29984.56825611,0.00018872,2]
[375284164,1753617032689,-1378.29992295,0.00018872,2]
[375284168,1753617032735,-571.935,0.00018872,2]
[375284334,1753617038734,-253.13765841,0.00018871,2]
[375284336,1753617038744,-1222.76807634,0.00018872,2]
[375284337,1753617038758,-652.66070144,0.00018872,2]
[375284338,1753617038770,-8073.16898473,0.00018872,2]
[375284339,1753617038781,-7628.59781984,0.00018872,2]
[375284340,1753617038812,-297930.67706034,0.00018872,2]
[375284341,1753617038821,-5099.76716443,0.000189,2]
[375284342,1753617038831,-4177.29804059,0.00019078,2]
[375284343,1753617038841,-212.20770642,0.00019173,2]
[375284344,1753617038851,-500.0,0.00019173,2]
[375284345,1753617038860,-532.93088371,0.00019173,2]
[375284346,1753617038870,-500.0,0.00019173,2]
[375284347,1753617038879,-500.0,0.00019173,2]
[375284348,1753617038889,-500.0,0.00019173,2]
[375284349,1753617038898,-500.0,0.00019173,2]
[375284350,1753617038908,-500.0,0.00019173,2]
[375284351,1753617038918,-500.0,0.00019173,2]
[375284352,1753617038927,-500.0,0.00019173,2]
[375284353,1753617038937,-500.0,0.00019173,2]
[375284354,1753617038946,-235.79192868,0.00019173,2]
[375284355,1753617038955,-500.0,0.00019173,2]
[375284356,1753617038965,-500.0,0.00019173,2]
[375284357,1753617038974,-500.0,0.00019173,2]
[375284358,1753617038984,-500.0,0.00019173,2]
[375284359,1753617038993,-500.0,0.00019173,2]
[375284360,1753617039002,-500.0,0.00019173,2]
[375284361,1753617039012,-500.0,0.00019173,2]
[375284362,1753617039022,-500.0,0.00019173,2]
[375284363,1753617039031,-501.57043918,0.00019173,2]
[375284364,1753617039041,-50000.0,0.00019173,2]
[375284365,1753617039051,-460.0,0.00019178,2]
[375284366,1753617039060,-460.0,0.00019178,2]
[375284367,1753617039070,-460.0,0.00019178,2]
[375284368,1753617039080,-276.35225419,0.00019178,2]
[375284369,1753617039089,-460.0,0.00019178,2]
[375284370,1753617039099,-460.0,0.00019178,2]
[375284371,1753617039109,-460.0,0.00019178,2]
[375284372,1753617039119,-460.0,0.00019178,2]
[375284373,1753617039128,-460.0,0.00019178,2]
[375284374,1753617039138,-460.0,0.00019178,2]
[375284375,1753617039148,-503.1484463,0.00019178,2]
[375284376,1753617039157,-460.0,0.00019178,2]
[375284377,1753617039167,-460.0,0.00019178,2]
[375284378,1753617039176,-460.0,0.00019178,2]
[375284379,1753617039186,-599.39692175,0.00019178,2]
[375284380,1753617039195,-460.0,0.00019178,2]
[375284381,1753617039205,-460.0,0.00019178,2]
[375284382,1753617039215,-460.0,0.00019178,2]
[375284383,1753617039224,-460.0,0.00019178,2]
[375284384,1753617039233,-460.0,0.00019178,2]
[375284385,1753617039243,-460.40992536,0.00019178,2]
[375284386,1753617039252,-460.0,0.00019178,2]
[375284387,1753617039262,-460.0,0.00019178,2]
[375284388,1753617039275,-460.0,0.00019178,2]
[375284389,1753617039285,-460.0,0.00019178,2]
[375284390,1753617039296,-460.0,0.00019178,2]
[375284391,1753617039306,-460.0,0.00019178,2]
[375284392,1753617039315,-461.53831293,0.00019178,2]
[375284393,1753617039325,-460.0,0.00019178,2]
[375284394,1753617039335,-460.0,0.00019178,2]
[375284395,1753617039348,-460.15158055,0.00019178,2]
[375284396,1753617039358,-338.36173856,0.00019178,2]
[375284397,1753617039367,-460.0,0.00019178,2]
[375284398,1753617039377,-460.0,0.00019178,2]
[375284399,1753617039388,-460.43761571,0.00019178,2]
[375284400,1753617039397,-460.0,0.00019178,2]
[375284401,1753617039407,-460.0,0.00019178,2]
[375284402,1753617039417,-460.0,0.00019178,2]
[375284403,1753617039429,-460.0,0.00019178,2]
[375284404,1753617039439,-460.0,0.00019178,2]
[375284405,1753617039449,-460.0,0.00019178,2]
[375284406,1753617039458,-460.0,0.00019178,2]
[375284407,1753617039468,-462.01426599,0.00019178,2]
[375284408,1753617039477,-460.0,0.00019178,2]
[375284409,1753617039487,-460.0,0.00019178,2]
[375284410,1753617039496,-460.0,0.00019178,2]
[375284411,1753617039506,-460.0,0.00019178,2]
[375284412,1753617039515,-460.0,0.00019178,2]
[375284413,1753617039524,-460.0,0.00019178,2]
[375284414,1753617039535,-460.0,0.00019178,2]
[375284415,1753617039546,-460.0,0.00019178,2]
[375284416,1753617039557,-460.0,0.00019178,2]
[375284417,1753617039567,-280.54419779,0.00019178,2]
[375284418,1753617039576,-460.0,0.00019178,2]
[375284419,1753617039586,-460.0,0.00019178,2]
[375284420,1753617039596,-460.0,0.00019178,2]
[375284421,1753617039605,-460.0,0.00019178,2]
[375284422,1753617039615,-460.0,0.00019178,2]
[375284423,1753617039625,-460.99341197,0.00019178,2]
[375284424,1753617039634,-460.0,0.00019178,2]
[375284425,1753617039644,-460.0,0.00019178,2]
[375284426,1753617039654,-460.0,0.00019178,2]
[375284427,1753617039663,-460.0,0.00019178,2]
[375284428,1753617039672,-460.0,0.00019178,2]
[375284429,1753617039682,-460.0,0.00019178,2]
[375284430,1753617039692,-460.0,0.00019178,2]
[375284431,1753617039702,-460.0,0.00019178,2]
[375284432,1753617039711,-460.46065874,0.00019178,2]
[375284433,1753617039721,-460.0,0.00019178,2]
[375284434,1753617039731,-460.0,0.00019178,2]
[375284435,1753617039741,-460.0,0.00019178,2]
[375284436,1753617039751,-460.0,0.00019178,2]
[375284437,1753617039762,-460.0,0.00019178,2]
[375284438,1753617039772,-460.0,0.00019178,2]
[375284439,1753617039782,-460.0,0.00019178,2]
[375284440,1753617039792,-460.0,0.00019178,2]
[375284441,1753617039803,-460.0,0.00019178,2]
[375284442,1753617039812,-460.0,0.00019178,2]
[375284443,1753617039822,-460.0,0.00019178,2]
[375284444,1753617039832,-460.0,0.00019178,2]
[375284445,1753617039842,-460.0,0.00019178,2]
[375284446,1753617039852,-460.0,0.00019178,2]
[375284447,1753617039862,-460.0,0.00019178,2]
[375284449,1753617039871,-460.0,0.00019178,2]
[375284451,1753617039881,-460.0,0.00019178,2]
[375284452,1753617039891,-460.0,0.00019178,2]
[375284453,1753617039901,-460.0,0.00019178,2]
[375284454,1753617039910,-460.0,0.00019178,2]
[375284456,1753617039919,-460.0,0.00019178,2]
[375284457,1753617039929,-460.0,0.00019178,2]
[375284458,1753617039939,-460.0,0.00019178,2]
[375284459,1753617039948,-460.0,0.00019178,2]
[375284460,1753617039958,-460.0,0.00019178,2]
[375284461,1753617039967,-460.0,0.00019178,2]
[375284462,1753617039976,-968.52,0.00019178,2]
[375284463,1753617039986,-460.0,0.00019178,2]
[375284464,1753617039996,-460.0,0.00019178,2]
[375284465,1753617040005,-460.0,0.00019178,2]
[375284466,1753617040015,-460.0,0.00019178,2]
[375284467,1753617040025,-461.15116015,0.00019178,2]
[375284468,1753617040035,-460.0,0.00019178,2]
[375284469,1753617040045,-414.26454411,0.00019178,2]
[375284471,1753617040054,-460.0,0.00019178,2]
[375284473,1753617040064,-460.56588561,0.00019178,2]
[375284474,1753617040073,-460.0,0.00019178,2]
[375284475,1753617040083,-460.0,0.00019178,2]
[375284476,1753617040093,-460.0,0.00019178,2]
[375284477,1753617040102,-592.53028,0.00019178,2]
[375284478,1753617040111,-460.0,0.00019178,2]
[375284479,1753617040121,-460.0,0.00019178,2]
[375284480,1753617040131,-460.0,0.00019178,2]
[375284482,1753617040141,-460.0,0.00019178,2]
[375284484,1753617040151,-460.0,0.00019178,2]
[375284486,1753617040162,-460.0,0.00019178,2]
[375284487,1753617040172,-460.0,0.00019178,2]
[375284488,1753617040181,-460.0,0.00019178,2]
[375284489,1753617040191,-460.0,0.00019178,2]
[375284490,1753617040201,-460.0,0.00019178,2]
[375284491,1753617040211,-460.0,0.00019178,2]
[375284492,1753617040220,-460.0,0.00019178,2]
[375284493,1753617040230,-460.0,0.00019178,2]
[375284494,1753617040240,-460.0,0.00019178,2]
[375284495,1753617040249,-460.0,0.00019178,2]
[375284496,1753617040259,-460.0,0.00019178,2]
[375284497,1753617040269,-460.0,0.00019178,2]
[375284498,1753617040278,-460.0,0.00019178,2]
[375284499,1753617040287,-460.0,0.00019178,2]
[375284500,1753617040298,-460.0,0.00019178,2]
[375284501,1753617040308,-460.0,0.00019178,2]
[375284503,1753617040317,-460.0,0.00019178,2]
[375284504,1753617040326,-460.0,0.00019178,2]
[375284506,1753617040336,-460.0,0.00019178,2]
[375284508,1753617040350,-335.00232095,0.00019178,2]
[375284509,1753617040360,-460.0,0.00019178,2]
[375284510,1753617040369,-460.0,0.00019178,2]
[375284512,1753617040379,-460.0,0.00019178,2]
[375284514,1753617040390,-460.0,0.00019178,2]
[375284516,1753617040400,-460.0,0.00019178,2]
[375284518,1753617040410,-460.0,0.00019178,2]
[375284520,1753617040419,-460.0,0.00019178,2]
[375284522,1753617040428,-460.0,0.00019178,2]
[375284524,1753617040439,-460.0,0.00019178,2]
[375284526,1753617040448,-460.0,0.00019178,2]
[375284528,1753617040457,-460.0,0.00019178,2]
[375284530,1753617040467,-460.0,0.00019178,2]
[375284532,1753617040476,-460.0,0.00019178,2]
[375284534,1753617040485,-461.21187854,0.00019178,2]
[375284536,1753617040495,-460.0,0.00019178,2]
[375284538,1753617040505,-460.0,0.00019178,2]
[375284540,1753617040515,-460.0,0.00019178,2]
[375284542,1753617040524,-460.0,0.00019178,2]
[375284544,1753617040533,-460.0,0.00019178,2]
[375284546,1753617040543,-460.0,0.00019178,2]
[375284548,1753617040552,-460.0,0.00019178,2]
[375284550,1753617040563,-460.0,0.00019178,2]
[375284552,1753617040573,-460.0,0.00019178,2]
[375284553,1753617040583,-460.0,0.00019178,2]
[375284556,1753617040592,-460.0,0.00019178,2]
[375284558,1753617040602,-711.41,0.00019178,2]
[375284560,1753617040611,-460.0,0.00019178,2]
[375284562,1753617040621,-460.0,0.00019178,2]
[375284564,1753617040630,-460.0,0.00019178,2]
[375284566,1753617040639,-511.04126419,0.00019178,2]
[375284568,1753617040649,-533.48656359,0.00019178,2]
[375284570,1753617040659,-460.0,0.00019178,2]
[375284572,1753617040669,-460.0,0.00019178,2]
[375284574,1753617040679,-460.0,0.00019178,2]
[375284576,1753617040688,-460.0,0.00019178,2]
[375284578,1753617040698,-517.38869031,0.00019178,2]
[375284579,1753617040707,-460.0,0.00019178,2]
[375284580,1753617040717,-460.0,0.00019178,2]
[375284582,1753617040727,-460.0,0.00019178,2]
[375284584,1753617040736,-460.0,0.00019178,2]
[375284586,1753617040746,-506.77413668,0.00019178,2]
[375284587,1753617040756,-461.67633156,0.00019178,2]
[375284589,1753617040766,-460.0,0.00019178,2]
[375284591,1753617040776,-460.0,0.00019178,2]
[375284593,1753617040786,-191.72223723,0.00019178,2]
[375284595,1753617040796,-460.64266467,0.00019178,2]
[375284597,1753617040805,-460.0,0.00019178,2]
[375284599,1753617040815,-460.0,0.00019178,2]
[375284600,1753617040824,-460.0,0.00019178,2]
[375284602,1753617040834,-460.0,0.00019178,2]
[375284604,1753617040844,-465.63202682,0.00019178,2]
[375284606,1753617040854,-460.0,0.00019178,2]